bitfinex/quotes_BTCUSD_20250408
["timestamp","ask_amount","ask_price","bid_price","bid_amount"]
[1744151487826,0.34,76682.0,76673.0,0.221719]
[1744151487990,0.34,76680.0,76674.0,0.221715]
[1744151488399,0.02412151,76679.0,76675.0,0.221712]
[1744151488600,0.02412151,76679.0,76675.0,0.013042]
[1744151488802,0.02412151,76679.0,76658.0,0.221762]
[1744151488803,0.221737,76667.0,76658.0,0.221762]
[1744151489007,0.013043,76669.0,76659.0,0.33497364]
[1744151489214,0.221734,76669.0,76660.0,0.208712]
[1744151489409,0.02412151,76668.0,76660.0,0.208712]
[1744151489615,0.24585751,76668.0,76660.0,0.208712]
[1744151489858,0.013043,76667.0,76660.0,0.208712]
[1744151490062,0.02412151,76666.0,76660.0,0.208712]
[1744151490273,0.02412151,76666.0,76658.0,0.009]
[1744151490462,0.013044,76659.0,76658.0,0.009]
[1744151490697,0.37716551,76659.0,76658.0,0.009]
[1744151490978,0.013045,76654.0,76648.0,8e-05]
[1744151491192,0.013045,76654.0,76649.0,0.0247971]
[1744151491321,0.221789,76649.0,76648.0,8e-05]
[1744151491533,0.58591051,76649.0,76648.0,8e-05]
[1744151491980,0.36412151,76649.0,76648.0,8e-05]
[1744151492380,0.37716751,76649.0,76648.0,8e-05]
[1744151492809,0.38316751,76649.0,76648.0,0.00108]
[1744151492992,0.37012151,76649.0,76648.0,0.00108]
[1744151493164,0.37716751,76649.0,76648.0,8e-05]
[1744151493471,0.38016751,76649.0,76648.0,8e-05]
[1744151494108,0.38316751,76649.0,76648.0,8e-05]
[1744151494604,0.39520977,76649.0,76648.0,8e-05]
[1744151495171,0.38920977,76649.0,76648.0,8e-05]
[1744151495599,0.39620977,76649.0,76648.0,8e-05]
[1744151495987,0.39320977,76649.0,76648.0,8e-05]
[1744151496334,0.40220977,76649.0,76648.0,0.00208]
[1744151496742,0.54384044,76649.0,76648.0,0.00208]
[1744151496900,0.59190926,76649.0,76648.0,1e-06]
[1744151497511,0.77666926,76649.0,76648.0,1e-06]
[1744151498363,0.013048,76637.0,76636.0,0.5]
[1744151498753,0.561824,76637.0,76636.0,0.5]
[1744151499167,0.57289751,76637.0,76636.0,0.5]
[1744151499374,0.59798777,76637.0,76636.0,0.5]
[1744151499819,0.60298777,76637.0,76636.0,0.5]
[1744151500833,0.72924641,76637.0,76636.0,0.5]
[1744151501438,0.58993977,76637.0,76636.0,0.5]
[1744151501670,0.60298777,76637.0,76636.0,0.5]
[1744151502044,0.60798777,76637.0,76636.0,0.5]
[1744151502450,0.73424641,76637.0,76636.0,0.5]
[1744151502943,0.73424641,76637.0,76603.0,0.208866]
[1744151502944,0.013052,76612.0,76598.0,0.0478]
[1744151503139,0.208874,76601.0,76599.0,0.12625864]
[1744151503436,0.20888,76599.0,76591.0,0.0478]
[1744151503635,0.02412151,76600.0,76591.0,0.17405864]
[1744151503866,0.20888,76599.0,76591.0,0.17405864]
[1744151504055,0.02412151,76600.0,76592.0,0.03960226]
[1744151504272,0.02412151,76598.0,76593.0,0.013056]
[1744151504492,0.02412151,76598.0,76596.0,0.208885]
[1744151504611,0.221915,76606.0,76597.0,0.013055]
[1744151504813,0.01198541,76605.0,76597.0,0.221938]
[1744151505034,0.01198541,76605.0,76598.0,0.0587492]
[1744151505232,0.02397056,76604.0,76598.0,0.0456942]
[1744151505415,0.001,76598.0,76593.0,0.225949]
[1744151505642,0.001,76598.0,76593.0,0.004]
[1744151505848,0.02397056,76597.0,76596.0,0.208888]
[1744151506047,0.02397056,76597.0,76596.0,0.221943]
[1744151507439,0.02497056,76597.0,76596.0,0.224943]
[1744151508494,0.02497056,76597.0,76596.0,0.228943]
[1744151509046,0.02497056,76597.0,76596.0,0.215888]
[1744151509270,0.02497056,76597.0,76596.0,0.228943]
[1744151509471,0.02497056,76597.0,76596.0,0.13325864]
[1744151509676,0.02497056,76597.0,76596.0,0.34214664]
[1744151509886,0.02497056,76597.0,76596.0,0.35520164]
[1744151510129,0.02497056,76597.0,76596.0,0.13325864]
[1744151510526,0.02497056,76597.0,76596.0,0.14631364]
[1744151512037,0.02497056,76597.0,76596.0,0.13325864]
[1744151512620,0.02497056,76597.0,76596.0,0.007]
[1744151513196,0.03802556,76597.0,76596.0,0.007]
[1744151513833,0.03802556,76597.0,76596.0,0.004]
[1744151513834,0.02397056,76597.0,76596.0,0.004]
[1744151514048,0.02397056,76597.0,76596.0,0.017055]
[1744151514233,0.03594637,76597.0,76596.0,0.003]
[1744151514452,0.03594637,76597.0,76596.0,0.39719724]
[1744151514601,0.03594637,76597.0,76596.0,0.39819724]
[1744151515428,0.03594637,76597.0,76596.0,0.39519724]
[1744151515638,0.02397056,76597.0,76596.0,0.39519724]
[1744151515845,0.02397056,76597.0,76596.0,0.39619724]
[1744151518255,0.34,76617.0,76612.0,0.221894]
[1744151518436,0.02397056,76618.0,76617.0,0.221881]
[1744151519217,0.0359832,76618.0,76617.0,0.221881]
[1744151519652,0.0359832,76618.0,76615.0,0.221886]
[1744151519842,0.0359832,76618.0,76616.0,0.12625864]
[1744151520046,0.01201264,76618.0,76617.0,0.0469956]
[1744151520465,0.01201264,76618.0,76617.0,0.0459956]
[1744151520669,0.03607814,76618.0,76617.0,0.0459956]
[1744151520978,0.0240655,76618.0,76607.0,0.208858]
[1744151521184,0.0240655,76617.0,76611.0,0.013052]
[1744151521591,0.2328985,76617.0,76610.0,0.33510564]
[1744151521782,0.208842,76613.0,76610.0,0.12625864]
[1744151522011,0.03607814,76616.0,76602.0,0.18492]
[1744151522012,0.013053,76610.0,76602.0,0.18492]
[1744151522174,0.2329095,76612.0,76603.0,0.37711664]
[1744151522354,0.2329095,76612.0,76611.0,0.003]
[1744151522558,0.2329095,76612.0,76611.0,0.005]
[1744151522777,0.24492214,76612.0,76611.0,0.005]
[1744151523117,0.24492214,76612.0,76611.0,0.003]
[1744151523466,0.24492214,76612.0,76611.0,0.001]
[1744151523885,0.24492214,76612.0,76611.0,0.222899]
[1744151523886,0.03607814,76612.0,76611.0,0.222899]
[1744151524105,0.03607814,76612.0,76611.0,0.2466942]
[1744151524308,0.03607814,76612.0,76611.0,0.37295284]
[1744151524886,0.03607814,76612.0,76611.0,0.014052]
[1744151525082,0.03607814,76612.0,76611.0,0.14131064]
[1744151528929,0.03607814,76612.0,76611.0,0.18741064]
[1744151529403,0.34,76635.0,76630.0,0.013049]
[1744151529690,0.34,76635.0,76626.0,0.208805]
[1744151529894,0.208767,76641.0,76633.0,0.013049]
[1744151530093,0.0482,76657.0,76636.0,0.208779]
[1744151530094,0.208759,76644.0,76636.0,0.208779]
[1744151530256,0.208759,76644.0,76638.0,0.208773]
[1744151530453,0.208759,76644.0,76633.0,0.013049]
[1744151530454,0.208807,76626.0,76611.0,0.001]
[1744151530691,0.208807,76626.0,76619.0,0.221874]
[1744151530972,0.39847374,76640.0,76609.0,0.20885]
[1744151530973,0.20883,76617.0,76609.0,0.20885]
[1744151531137,0.013051,76618.0,76612.0,0.12625864]
[1744151531339,0.221893,76613.0,76611.0,0.007]
[1744151531596,0.23396702,76612.0,76611.0,0.13325864]
[1744151531898,0.208847,76611.0,76604.0,0.22192]
[1744151532036,0.208847,76611.0,76606.0,0.013053]
[1744151532237,0.208852,76610.0,76606.0,0.12625864]
[1744151532892,0.208855,76609.0,76606.0,0.12625864]
[1744151533095,0.209847,76611.0,76606.0,0.12625864]
[1744151533323,0.001,76611.0,76606.0,0.15159456]
[1744151533453,0.001,76611.0,76610.0,0.221903]
[1744151533916,0.001,76610.0,76607.0,0.34816964]
[1744151534274,0.001,76611.0,76608.0,0.013053]
[1744151534537,0.002,76611.0,76609.0,0.16954144]
[1744151534737,0.001,76611.0,76609.0,0.16954144]
[1744151534950,0.208843,76613.0,76609.0,0.16954144]
[1744151535106,0.001,76610.0,76609.0,0.16954144]
[1744151535321,0.014053,76610.0,76609.0,0.0432828]
[1744151535473,0.013053,76608.0,76607.0,0.005]
[1744151536282,0.02511993,76608.0,76607.0,0.005]
[1744151536983,0.013054,76604.0,76595.0,0.221943]
[1744151537154,0.013053,76607.0,76595.0,0.221943]
[1744151537155,0.20886,76607.0,76600.0,0.208877]
[1744151537329,0.01206693,76608.0,76604.0,0.013054]
[1744151537542,0.01206693,76608.0,76606.0,0.20886]
[1744151537757,0.01506693,76608.0,76607.0,0.006]
[1744151537930,0.22192193,76608.0,76607.0,0.13225864]
[1744151538133,0.01206693,76608.0,76607.0,0.1629817]
[1744151538355,0.1848,76629.0,76607.0,0.1629817]
[1744151538557,0.208851,76610.0,76608.0,0.12625864]
[1744151538960,0.208843,76613.0,76608.0,0.12625864]
[1744151539157,0.208846,76612.0,76608.0,0.12625864]
[1744151539363,0.20885,76610.0,76609.0,0.03189566]
[1744151539604,0.20885,76611.0,76604.0,0.221917]
[1744151539809,0.208836,76616.0,76606.0,0.013053]
[1744151539980,0.002,76608.0,76607.0,0.33511664]
[1744151540179,0.002,76608.0,76607.0,0.34816964]
[1744151540584,0.004,76608.0,76607.0,0.34816964]
[1744151541188,0.002,76608.0,76607.0,0.34816964]
[1744151541421,0.003,76610.0,76607.0,0.13931164]
[1744151541634,0.003,76610.0,76607.0,0.001]
[1744151542018,0.208849,76611.0,76607.0,0.001]
[1744151542214,0.208849,76611.0,76607.0,0.0487888]
[1744151542419,0.208821,76621.0,76612.0,0.013052]
[1744151542617,0.208821,76621.0,76607.0,0.17504744]
[1744151542618,0.1848,76642.0,76631.0,0.208792]
[1744151542816,0.208778,76637.0,76630.0,0.208795]
[1744151543092,0.208789,76633.0,76631.0,0.02282992]
[1744151543238,0.221838,76633.0,76625.0,0.34811664]
[1744151543417,0.34,76634.0,76628.0,0.01305]
[1744151543618,0.208787,76633.0,76626.0,0.01305]
[1744151543822,0.34,76634.0,76626.0,0.221854]
[1744151544029,0.208792,76632.0,76625.0,0.12625864]
[1744151544229,0.3131,76653.0,76622.0,0.221866]
[1744151544230,0.208769,76640.0,76631.0,0.208792]
[1744151544422,0.208789,76633.0,76626.0,0.33506364]
[1744151544621,0.013049,76634.0,76626.0,0.33506364]
[1744151544622,0.208792,76632.0,76627.0,0.05537828]
[1744151544821,0.208792,76632.0,76628.0,0.12625864]
[1744151545068,0.208792,76632.0,76630.0,0.001]
[1744151545555,0.208792,76632.0,76628.0,0.12625864]
[1744151545867,0.208792,76632.0,76629.0,0.01324044]
[1744151546441,0.208795,76630.0,76629.0,0.01324044]
[1744151546642,0.208795,76630.0,76628.0,0.001]
[1744151546846,0.013049,76629.0,76628.0,0.001]
[1744151547290,0.013049,76632.0,76620.0,0.013051]
[1744151547461,0.208806,76627.0,76621.0,0.33507564]
[1744151547819,0.208806,76627.0,76621.0,0.13930964]
[1744151548008,0.417432,76660.0,76629.0,0.013049]
[1744151548209,0.208775,76638.0,76633.0,0.208786]
[1744151548441,0.221835,76634.0,76628.0,0.208799]
[1744151548611,0.208786,76634.0,76629.0,0.208798]
[1744151548777,0.208786,76634.0,76628.0,0.13930864]
[1744151548778,0.208789,76633.0,76630.0,0.03742066]
[1744151549182,0.208779,76636.0,76631.0,0.013049]
[1744151549736,0.208792,76632.0,76630.0,0.03742066]
[1744151550075,0.013047,76642.0,76630.0,0.03742066]
[1744151550076,0.01324194,76644.0,76642.0,0.208762]
[1744151550370,0.013046,76646.0,76634.0,0.013049]
[1744151550477,0.013047,76643.0,76638.0,0.013048]
[1744151550683,0.013047,76643.0,76639.0,0.12625864]
[1744151551303,0.013048,76635.0,76628.0,0.01305]
[1744151551497,0.20879,76632.0,76629.0,0.12625864]
[1744151551723,0.013049,76634.0,76630.0,0.01393086]
[1744151551924,0.221838,76633.0,76630.0,0.1401895]
[1744151552153,0.013049,76633.0,76630.0,0.12625864]
[1744151552621,0.221835,76634.0,76630.0,0.33505164]
[1744151552786,0.34,76645.0,76639.0,0.208768]
[1744151552965,0.353047,76645.0,76640.0,0.0221816]
[1744151553315,0.22176491,76645.0,76640.0,0.2309466]
[1744151553508,0.221809,76643.0,76636.0,0.221826]
[1744151553710,0.013047,76641.0,76636.0,0.221826]
[1744151553869,0.208768,76640.0,76633.0,0.221833]
[1744151554072,0.208768,76640.0,76633.0,0.34809164]
[1744151554292,0.208774,76638.0,76633.0,0.34809164]
[1744151554689,0.221818,76639.0,76634.0,0.208782]
[1744151555087,0.221818,76639.0,76634.0,0.221831]
[1744151555294,0.221818,76639.0,76635.0,0.208779]
[1744151555858,0.221818,76639.0,76634.0,0.221831]
[1744151556051,0.221818,76639.0,76635.0,0.20878]
[1744151556688,0.208782,76636.0,76633.0,0.12625864]
[1744151556889,0.221832,76635.0,76633.0,0.12625864]
[1744151557096,0.221832,76635.0,76628.0,0.01305]
[1744151557097,0.208787,76633.0,76628.0,0.221849]
[1744151557289,0.221831,76635.0,76629.0,0.013049]
[1744151557504,0.208786,76634.0,76630.0,0.208793]
[1744151557632,0.221837,76633.0,76628.0,0.34810764]
[1744151557838,0.013049,76633.0,76628.0,0.34810764]
[1744151558441,0.208794,76631.0,76629.0,0.002]
[1744151558642,0.013049,76630.0,76629.0,0.002]
[1744151559228,0.353049,76630.0,76629.0,0.002]
[1744151559809,0.52580764,76630.0,76629.0,0.002]
[1744151560211,0.013052,76612.0,76605.0,0.221914]
[1744151560490,0.221899,76611.0,76606.0,0.12625864]
[1744151561082,0.013053,76609.0,76606.0,0.12625864]
[1744151561285,0.208857,76608.0,76607.0,0.01262586]
[1744151561472,0.22191,76608.0,76607.0,0.01262586]
[1744151561674,0.221913,76606.0,76595.0,0.208889]
[1744151561879,0.20888,76599.0,76597.0,0.12625864]
[1744151562509,0.208869,76603.0,76597.0,0.12625864]
[1744151562661,0.208869,76603.0,76597.0,0.13931364]
[1744151563322,0.013054,76602.0,76597.0,0.13583463]
[1744151563474,0.20891,76588.0,76582.0,0.18468]
[1744151563675,0.208919,76585.0,76583.0,0.12625864]
[1744151563916,0.20891,76588.0,76584.0,0.05459896]
[1744151564130,0.20891,76588.0,76585.0,0.12625864]
[1744151564550,0.208907,76590.0,76585.0,0.12625864]
[1744151564753,0.20991,76588.0,76585.0,0.12625864]
[1744151564961,0.208907,76590.0,76585.0,0.12625864]
[1744151565193,0.001,76588.0,76586.0,0.01401976]
[1744151565402,0.210911,76588.0,76586.0,0.01401976]
[1744151565576,0.209911,76588.0,76586.0,0.01401976]
[1744151565925,0.210911,76588.0,76586.0,0.01401976]
[1744151566419,0.221972,76586.0,76585.0,0.007]
[1744151566624,0.208915,76586.0,76585.0,0.007]
[1744151566823,0.221972,76586.0,76585.0,0.011]
[1744151567076,0.208929,76581.0,76574.0,0.222007]
[1744151567294,0.208929,76581.0,76575.0,0.12625864]
[1744151567478,0.013057,76584.0,76575.0,0.12625864]
[1744151567479,0.208926,76582.0,76575.0,0.12625864]
[1744151567628,0.208934,76579.0,76575.0,0.13584012]
[1744151567821,0.208956,76572.0,76568.0,1.03412]
[1744151568026,0.208956,76572.0,76569.0,0.12625864]
[1744151568027,0.208958,76571.0,76569.0,0.12625864]
[1744151568235,0.208958,76571.0,76570.0,0.01736586]
[1744151568437,0.208958,76571.0,76570.0,0.1436245]
[1744151568690,0.208945,76575.0,76570.0,0.1436245]
[1744151568844,0.222,76577.0,76571.0,0.03755015]
[1744151568845,0.20895,76574.0,76571.0,0.03755015]
[1744151569046,0.20990745,76572.0,76570.0,0.1436245]
[1744151569255,0.20990745,76572.0,76568.0,0.008]
[1744151569256,0.208961,76569.0,76568.0,0.008]
[1744151569520,0.001,76572.0,76568.0,0.008]
[1744151569649,0.001,76572.0,76571.0,0.013059]
[1744151569994,0.001,76572.0,76568.0,0.008]
[1744151570292,0.208959,76571.0,76568.0,0.0533896]
[1744151570496,0.222018,76571.0,76570.0,0.004]
[1744151570699,0.01306,76569.0,76568.0,0.008]
[1744151570853,0.01306,76568.0,76555.0,0.209]
[1744151571093,0.222031,76566.0,76559.0,0.208989]
[1744151571288,0.208971,76566.0,76560.0,0.12625864]
[1744151571486,0.208971,76566.0,76560.0,0.34830364]
[1744151571730,0.208965,76568.0,76561.0,0.222042]
[1744151571881,0.209965,76568.0,76563.0,0.208978]
[1744151572289,0.001,76568.0,76566.0,0.01306]
[1744151572488,0.013058,76578.0,76570.0,0.222015]
[1744151572683,0.20894,76577.0,76571.0,0.2337675]
[1744151572889,0.208937,76579.0,76573.0,0.20895]
[1744151573096,0.208939,76578.0,76571.0,0.2468265]
[1744151573304,0.208939,76578.0,76571.0,0.222013]
[1744151573504,0.222011,76573.0,76567.0,0.208965]
[1744151573702,0.222011,76573.0,76571.0,0.001]
[1744151573952,0.222004,76575.0,76571.0,0.001]
[1744151574152,0.222004,76575.0,76569.0,0.01306]
[1744151574352,0.222004,76575.0,76571.0,0.001]
[1744151574555,0.013058,76576.0,76571.0,0.001]
[1744151574773,0.208953,76573.0,76571.0,0.0484219]
[1744151574956,0.013059,76574.0,76570.0,0.001]
[1744151575348,0.013059,76574.0,76568.0,0.222022]
[1744151575556,0.013059,76574.0,76571.0,0.001]
[1744151575761,0.222009,76574.0,76571.0,0.001]
[1744151575955,0.208952,76573.0,76571.0,0.001]
[1744151576216,0.222009,76574.0,76571.0,0.001]
[1744151576612,0.013059,76572.0,76571.0,0.002]
[1744151576820,0.013059,76575.0,76571.0,0.002]
[1744151576995,0.222006,76575.0,76571.0,0.001]
[1744151577191,0.013059,76575.0,76571.0,0.001]
[1744151577402,0.208936,76579.0,76570.0,0.001]
[1744151577694,0.208909,76589.0,76579.0,0.013058]
[1744151577858,0.013056,76590.0,76579.0,0.013058]
[1744151578083,0.208899,76592.0,76585.0,0.208917]
[1744151578283,0.208899,76592.0,76571.0,0.002]
[1744151578284,0.013058,76578.0,76571.0,0.002]
[1744151578537,0.208953,76572.0,76571.0,0.002]
[1744151578733,0.20894,76578.0,76571.0,0.001]
[1744151578996,0.208951,76573.0,76564.0,0.01306]
[1744151579237,0.208951,76573.0,76565.0,0.17637597]
[1744151579435,0.208929,76581.0,76566.0,0.01306]
[1744151579637,0.208941,76577.0,76569.0,0.208959]
[1744151579859,0.208926,76582.0,76570.0,0.13931764]
[1744151580065,0.013058,76581.0,76571.0,0.002]
[1744151580263,0.013058,76581.0,76572.0,0.14476003]
[1744151580418,0.208964,76569.0,76565.0,0.208972]
[1744151580603,0.013058,76579.0,76571.0,0.002]
[1744151580604,0.208955,76572.0,76571.0,0.002]
[1744151581005,0.208955,76572.0,76566.0,0.34828664]
[1744151581306,0.013059,76570.0,76558.0,0.222051]
[1744151581504,0.222015,76571.0,76561.0,0.12625864]
[1744151581728,0.20898,76563.0,76561.0,0.12625864]
[1744151581929,0.209013,76551.0,76549.0,0.049]
[1744151582129,0.209013,76551.0,76543.0,0.013064]
[1744151582331,0.209008,76552.0,76546.0,0.222086]
[1744151582560,0.209008,76553.0,76547.0,0.33527764]
[1744151582763,0.209008,76553.0,76547.0,0.34834064]
[1744151583009,0.209008,76553.0,76547.0,0.33527864]
[1744151583211,0.208989,76559.0,76551.0,0.013063]
[1744151583452,0.20898,76562.0,76554.0,0.013062]
[1744151583629,0.223039,76563.0,76558.0,0.208989]
[1744151583630,0.001,76563.0,76558.0,0.208989]
[1744151583839,0.001,76563.0,76550.0,0.013063]
[1744151583840,0.20901,76552.0,76546.0,0.00979552]
[1744151584061,0.013062,76557.0,76547.0,0.12625864]
[1744151584261,0.562083,76548.0,76547.0,0.005]
[1744151584461,0.562083,76548.0,76523.0,0.0459]
[1744151584462,0.013066,76529.0,76516.0,0.19936585]
[1744151584665,0.013067,76524.0,76517.0,0.12625864]
[1744151584866,0.222152,76524.0,76517.0,0.12625864]
[1744151585085,0.20909,76522.0,76517.0,0.12625864]
[1744151585262,0.57724955,76530.0,76520.0,0.013068]
[1744151585631,0.35511355,76540.0,76525.0,0.013067]
[1744151585795,0.013065,76537.0,76527.0,0.013067]
[1744151585999,0.549044,76539.0,76532.0,0.013066]
[1744151586000,0.34,76539.0,76532.0,0.013066]
[1744151586208,0.34,76539.0,76533.0,0.12625864]
[1744151586381,0.353065,76537.0,76534.0,0.01262586]
[1744151586913,0.353065,76537.0,76534.0,0.22168186]
[1744151586914,0.34,76537.0,76534.0,0.22168186]
[1744151587265,0.006,76539.0,76534.0,0.22168186]
[1744151587266,0.006,76539.0,76538.0,0.013065]
[1744151587470,0.34,76547.0,76542.0,0.013064]
[1744151587668,0.34,76547.0,76541.0,0.209038]
[1744151587873,0.353063,76547.0,76541.0,0.222102]
[1744151588075,0.013062,76554.0,76544.0,0.013064]
[1744151588285,0.013062,76555.0,76545.0,0.0222095]
[1744151588559,0.013062,76555.0,76536.0,0.20905]
[1744151588560,0.013063,76551.0,76536.0,0.222115]
[1744151588760,0.34,76552.0,76539.0,0.209043]
[1744151588956,0.003,76547.0,76539.0,0.12625864]
[1744151589161,0.003,76547.0,76517.0,0.0459]
[1744151589162,0.013065,76536.0,76517.0,0.0459]
[1744151589493,0.209085,76524.0,76518.0,0.12625864]
[1744151589691,0.209079,76526.0,76518.0,0.34842564]
[1744151590014,0.209077,76527.0,76521.0,0.013068]
[1744151590224,0.209077,76527.0,76522.0,0.12625864]
[1744151590420,0.209072,76529.0,76522.0,0.12625864]
[1744151590578,0.209077,76527.0,76522.0,0.12625864]
[1744151591005,0.209072,76529.0,76522.0,0.12625864]
[1744151591247,0.209077,76527.0,76522.0,0.12625864]
[1744151591458,0.209072,76529.0,76522.0,0.13932664]
[1744151591612,0.210077,76527.0,76522.0,0.14632664]
[1744151591837,0.210077,76527.0,76522.0,0.13325864]
[1744151591838,0.209087,76523.0,76522.0,0.13325864]
[1744151592059,0.222154,76523.0,76522.0,0.007]
[1744151592247,0.209098,76519.0,76518.0,0.002]
[1744151592450,0.209098,76519.0,76518.0,0.02983443]
[1744151593437,0.209094,76521.0,76518.0,0.002]
[1744151594176,0.209079,76526.0,76519.0,0.13932664]
[1744151594564,0.209085,76524.0,76519.0,0.12625864]
[1744151594726,0.209098,76519.0,76518.0,0.003]
[1744151594925,0.209098,76519.0,76518.0,0.01301858]
[1744151595146,0.209092,76521.0,76518.0,0.01501858]
[1744151595344,0.209092,76521.0,76518.0,0.01301858]
[1744151595546,0.209098,76519.0,76516.0,0.03723027]
[1744151595753,0.222171,76517.0,76516.0,0.03723027]
[1744151595947,0.222171,76518.0,76516.0,0.03723027]
[1744151596172,0.34,76526.0,76516.0,0.05029927]
[1744151596372,0.353067,76524.0,76518.0,0.001]
[1744151596575,0.209103,76517.0,76516.0,0.03723027]
[1744151596915,0.222171,76517.0,76516.0,0.04655337]
[1744151597036,0.222152,76524.0,76518.0,0.2091]
[1744151597241,0.222152,76524.0,76516.0,0.03723027]
[1744151597242,0.209095,76520.0,76516.0,0.03723027]
[1744151597490,0.209101,76518.0,76517.0,0.03094193]
[1744151597695,0.222169,76518.0,76516.0,0.03723027]
[1744151597874,0.209091,76522.0,76516.0,0.25940427]
[1744151598071,0.003,76517.0,76516.0,0.03723027]
[1744151598270,0.209101,76518.0,76516.0,0.07007817]
[1744151598640,0.013068,76517.0,76516.0,0.07007817]
[1744151598988,0.013068,76517.0,76516.0,0.03723027]
[1744151599341,0.014068,76517.0,76516.0,0.03723027]
[1744151599878,0.354068,76517.0,76516.0,0.03723027]
[1744151600076,0.48032664,76517.0,76516.0,0.03723027]
[1744151600669,0.5573871,76517.0,76516.0,0.03723027]
[1744151600868,0.69560684,76517.0,76516.0,0.03723027]
[1744151601131,0.57035139,76517.0,76516.0,0.03723027]
[1744151601502,0.57335139,76517.0,76516.0,0.00371452]
[1744151601708,0.56835139,76517.0,76516.0,0.00371452]
[1744151602108,0.57735139,76517.0,76516.0,0.00371452]
[1744151602489,0.57671585,76516.0,76515.0,5.2e-07]
[1744151602695,0.88773449,76516.0,76515.0,5.2e-07]
[1744151603307,0.57673085,76511.0,76510.0,0.00596121]
[1744151603508,0.71495378,76511.0,76510.0,7.948e-05]
[1744151603738,0.84120923,76511.0,76510.0,7.948e-05]
[1744151603943,0.73886123,76511.0,76510.0,7.948e-05]
[1744151604153,0.24499174,76511.0,76510.0,7.948e-05]
[1744151604320,0.25806174,76511.0,76510.0,7.948e-05]
[1744151604692,0.03587174,76511.0,76510.0,0.01314948]
[1744151604907,0.03587174,76511.0,76510.0,0.02492233]
[1744151605105,0.05387174,76511.0,76510.0,0.03899233]
[1744151605301,0.04303429,76511.0,76510.0,0.00107948]
[1744151605527,0.03403429,76511.0,76510.0,0.00107948]
[1744151605944,0.04203429,76511.0,76510.0,0.00107948]
[1744151606966,0.03303429,76511.0,76510.0,7.948e-05]
[1744151607162,0.02903429,76511.0,76510.0,7.948e-05]
[1744151607607,0.12076532,76511.0,76510.0,7.948e-05]
[1744151607809,0.03403429,76511.0,76510.0,7.948e-05]
[1744151608655,0.50029293,76511.0,76510.0,7.948e-05]
[1744151609310,0.37403429,76511.0,76510.0,7.948e-05]
[1744151610923,0.39802559,76511.0,76510.0,7.948e-05]
[1744151611117,0.38495559,76511.0,76510.0,7.948e-05]
[1744151611352,0.04495559,76511.0,76510.0,7.948e-05]
[1744151611697,0.03403429,76511.0,76510.0,7.948e-05]
[1744151612302,0.02096429,76511.0,76510.0,0.01314948]
[1744151613025,0.04499076,76511.0,76510.0,7.948e-05]
[1744151613224,0.26718076,76511.0,76510.0,7.948e-05]
[1744151613638,0.05806076,76511.0,76510.0,7.948e-05]
[1744151614311,0.39806076,76511.0,76510.0,7.948e-05]
[1744151614530,0.5694194,76511.0,76510.0,7.948e-05]
[1744151614959,0.013072,76497.0,76491.0,0.222247]
[1744151615148,0.222238,76494.0,76485.0,0.222262]
[1744151615361,0.209188,76486.0,76479.0,0.013075]
[1744151615501,0.209188,76486.0,76479.0,0.13933364]
[1744151615696,0.013074,76487.0,76475.0,0.00969795]
[1744151615697,0.013075,76479.0,76475.0,0.00969795]
[1744151615902,0.013074,76482.0,76476.0,0.33547164]
[1744151616223,0.02402647,76481.0,76477.0,0.03970476]
[1744151616425,0.013075,76479.0,76473.0,0.013076]
[1744151616727,0.02402647,76478.0,76473.0,0.013076]
[1744151616930,0.02402647,76478.0,76472.0,0.013076]
[1744151616931,0.013075,76477.0,76472.0,0.209225]
[1744151617124,0.222294,76475.0,76470.0,0.209229]
[1744151617429,0.222294,76475.0,76469.0,0.222309]
[1744151617737,0.03599076,76474.0,76473.0,0.022076]
[1744151618150,0.03599076,76474.0,76473.0,0.13933464]
[1744151618947,0.03599076,76474.0,76473.0,0.18783464]
[1744151619354,0.01196429,76474.0,76473.0,0.18783464]
[1744151619696,0.001,76475.0,76474.0,0.222297]
[1744151619843,0.001,76475.0,76474.0,0.39675564]
[1744151620673,0.02404561,76499.0,76495.0,0.209163]
[1744151620834,0.209169,76493.0,76488.0,0.222254]
[1744151621028,0.03607107,76498.0,76490.0,0.013073]
[1744151621302,0.03607107,76498.0,76474.0,0.48828864]
[1744151621303,0.209183,76488.0,76478.0,0.013075]
[1744151621503,0.013074,76487.0,76480.0,0.222277]
[1744151621700,0.013074,76487.0,76474.0,0.004]
[1744151621701,0.20921,76478.0,76474.0,0.004]
[1744151621925,0.209208,76479.0,76474.0,0.004]
[1744151622129,0.222279,76481.0,76474.0,0.004]
[1744151622325,0.01202546,76480.0,76474.0,0.213219]
[1744151622543,0.03608131,76480.0,76476.0,0.209215]
[1744151622744,0.03608131,76480.0,76475.0,0.222291]
[1744151622988,0.02405585,76479.0,76476.0,0.013075]
[1744151623103,0.03608131,76479.0,76477.0,0.013075]
[1744151623304,0.01202546,76479.0,76478.0,0.0278591]
[1744151623785,0.03608636,76479.0,76478.0,0.0278591]
[1744151623979,0.03608636,76479.0,76477.0,0.222286]
[1744151624206,0.03608636,76479.0,76478.0,0.013075]
[1744151624749,0.03608636,76479.0,76478.0,0.017075]
[1744151625090,0.03608636,76479.0,76478.0,0.013075]
[1744151625290,0.03608636,76479.0,76478.0,0.13933364]
[1744151626037,0.01202546,76479.0,76478.0,0.13933364]
[1744151626395,0.01202546,76479.0,76478.0,0.14333364]
[1744151627016,0.01202546,76479.0,76478.0,0.017075]
[1744151627213,0.01202546,76479.0,76478.0,0.14333364]
[1744151628470,0.0361033,76479.0,76478.0,0.004]
[1744151629462,0.0361033,76479.0,76478.0,0.013075]
[1744151629824,0.0361033,76479.0,76478.0,0.003]
[1744151630793,0.0371033,76479.0,76478.0,0.003]
[1744151631517,0.20922,76475.0,76469.0,0.209234]
[1744151631714,0.209213,76477.0,76471.0,0.209227]
[1744151631918,0.0501783,76479.0,76464.0,0.257748]